bitfinex/quotes_ETHUSD_20241101
["timestamp","ask_amount","ask_price","bid_price","bid_amount"]
[1730480505278,3.96917,2519.5,2519.0,4.504547]
[1730480505585,3.96888,2519.6,2519.0,4.504527]
[1730480505904,5.62006685,2519.6,2519.1,3.96959]
[1730480506107,4.65118685,2519.7,2519.0,4.504527]
[1730480506308,3.9693,2519.4,2518.9,1.378]
[1730480506663,3.9693,2519.4,2519.0,3.96981]
[1730480507200,3.96936,2519.3,2518.9,5.34796]
[1730480507614,3.96922,2519.4,2519.0,3.96982]
[1730480508496,4.65118685,2519.6,2519.1,3.96967]
[1730480508497,3.96906,2519.5,2519.1,3.96967]
[1730480508696,3.96906,2519.5,2519.1,8.871076]
[1730480509009,9.01533372,2519.9,2519.3,5.41874]
[1730480509010,5.61983685,2519.8,2519.3,5.41874]
[1730480509207,6.03795351,2519.9,2519.3,5.41874]
[1730480509208,3.96873,2519.7,2519.3,1.4495]
[1730480509374,3.96873,2519.7,2519.3,5.41877]
[1730480509579,3.96865,2519.8,2519.3,5.87482996]
[1730480509782,1.65118685,2519.9,2519.4,3.96916]
[1730480509985,1.65118685,2519.8,2519.4,3.96916]
[1730480510168,1.65118685,2520.0,2519.5,3.96903]
[1730480510374,1.65118685,2520.0,2519.7,3.96871]
[1730480510580,5.61929685,2520.1,2519.8,1.4495]
[1730480510825,1.65118685,2520.2,2519.8,5.41801]
[1730480511136,3.96809,2520.1,2519.8,1.4495]
[1730480511622,3.96795,2520.2,2519.8,5.41805]
[1730480511915,3.96795,2520.2,2519.8,1.4495]
[1730480512213,5.61903685,2520.3,2519.9,3.96839]
[1730480512418,1.65118685,2520.3,2519.9,4.04774874]
[1730480512600,3.96774,2520.4,2520.0,5.38547]
[1730480512804,1.65118685,2520.5,2520.0,1.4173]
[1730480513187,3.96748,2520.5,2520.1,4.04742464]
[1730480513419,3.96748,2520.5,2520.0,1.4173]
[1730480513420,0.69768792,2520.5,2520.0,1.4173]
[1730480513576,3.9684,2520.0,2519.8,1.4173]
[1730480513776,7.46668849,2520.5,2519.5,1.4173]
[1730480513777,1.65118685,2520.3,2519.5,1.4173]
[1730480513990,3.96871,2519.8,2519.5,1.4173]
[1730480514189,1.65118685,2520.1,2519.5,1.4173]
[1730480514554,2.07017013,2520.2,2519.5,1.4173]
[1730480514555,3.96848,2519.9,2519.5,5.38632]
[1730480514720,3.96873,2519.7,2519.5,1.4173]
[1730480514923,3.96848,2519.9,2519.5,1.4173]
[1730480515215,3.96841,2519.9,2519.6,0.07937285]
[1730480515416,3.96841,2519.9,2519.5,5.3862]
[1730480515997,3.96859,2519.8,2519.5,1.4173]
[1730480516328,3.96847,2519.9,2519.4,3.96911]
[1730480516633,3.96809,2520.1,2519.3,5.31574]
[1730480516830,7.93732,2519.8,2519.3,5.31574]
[1730480516978,3.96865,2519.8,2519.3,5.31574]
[1730480517326,3.96883,2519.7,2519.3,1.3464]
[1730480517507,3.96891,2519.6,2519.3,1.3464]
[1730480517674,3.96931,2519.4,2518.9,5.40189]
[1730480517874,7.93831,2519.5,2519.0,3.96974]
[1730480518112,3.96921,2519.4,2519.0,3.96974]
[1730480518343,3.96881,2519.7,2519.2,5.40139]
[1730480518646,3.96881,2519.7,2519.3,4.04871893]
[1730480519020,3.9689,2519.6,2519.3,0.07937893]
[1730480519236,3.9689,2519.6,2519.2,1.432]
[1730480519237,3.96905,2519.5,2519.2,1.432]
[1730480519518,3.9689,2519.6,2519.2,1.432]
[1730480519519,7.93787,2519.6,2519.2,1.432]
[1730480520456,3.96932,2519.4,2518.9,5.41945]
[1730480520639,3.96937,2519.3,2518.9,5.41945]
[1730480520943,3.96906,2519.5,2519.1,3.96965]
[1730480521154,3.96872,2519.7,2519.3,1.4496]
[1730480521319,3.96872,2519.7,2519.3,5.41888]
[1730480521509,1.24032991,2519.9,2519.3,2.39636644]
[1730480521709,3.96882,2519.7,2519.3,1.4496]
[1730480521914,1.24032991,2519.9,2519.3,5.41892]
[1730480522218,3.96816,2520.1,2519.6,5.41836]
[1730480522524,3.96775,2520.4,2519.9,3.96831]
[1730480522724,6.03316654,2520.6,2519.9,0.54403751]
[1730480522725,1.65377322,2520.6,2519.9,0.54403751]
[1730480522923,1.65377322,2520.6,2520.2,3.96791]
[1730480522924,3.96733,2520.6,2520.2,3.96791]
[1730480523261,3.96699,2520.8,2520.3,5.43979917]
[1730480523447,3.96699,2520.8,2520.3,9.32814]
[1730480523653,0.87657238,2521.0,2520.6,3.96715]
[1730480523955,3.96664,2521.1,2520.8,1.3927]
[1730480524148,5.62010322,2521.3,2520.8,5.35962]
[1730480524361,3.96638,2521.2,2520.8,1.47202951]
[1730480524670,1.65377322,2521.4,2520.8,1.3927]
[1730480524671,3.96676,2521.0,2520.8,1.3927]
[1730480525006,3.96646,2521.2,2520.8,1.3927]
[1730480525351,3.96646,2521.2,2520.9,0.0793313]
[1730480525352,0.52040075,2521.2,2520.9,0.0793313]
[1730480525645,0.52040075,2521.2,2520.8,1.3927]
[1730480525848,0.52040075,2521.2,2520.8,5.35955]
[1730480525849,3.96636,2521.2,2520.8,5.35955]
[1730480526213,3.96636,2521.2,2520.8,1.3927]
[1730480526214,3.96652,2521.1,2520.8,1.3927]
[1730480526554,3.96615,2521.4,2520.8,5.35961]
[1730480526721,3.96628,2521.3,2520.8,5.43894073]
[1730480526921,3.96628,2521.3,2520.8,9.40585073]
[1730480527140,3.96615,2521.4,2520.8,5.3596]
[1730480527335,3.9662,2521.3,2520.8,5.43892727]
[1730480527543,3.9662,2521.3,2520.9,3.96681]
[1730480527714,3.0,2521.5,2521.0,0.07932719]
[1730480528061,3.96638,2521.2,2520.8,1.3927]
[1730480528359,1.23754754,2521.6,2520.9,4.0461598]
[1730480528360,3.96622,2521.3,2520.9,4.0461598]
[1730480528713,3.9659,2521.5,2520.9,4.0461598]
[1730480529017,3.96605,2521.4,2520.9,4.51071598]
[1730480529352,3.96621,2521.3,2520.9,4.51071598]
[1730480529556,3.96626,2521.3,2520.8,1.3927]
[1730480529735,7.71535929,2521.7,2520.8,1.3927]
[1730480529736,3.96589,2521.5,2520.8,1.3927]
[1730480529919,3.96669,2521.0,2520.8,1.3927]
[1730480530338,3.96653,2521.1,2520.8,1.3927]
[1730480530656,3.96632,2521.3,2520.8,5.3596]
[1730480530967,3.96637,2521.2,2520.8,1.3927]
[1730480531140,3.96652,2521.1,2520.8,1.3927]
[1730480531538,3.96669,2521.0,2520.8,1.3927]
[1730480531760,3.96637,2521.2,2520.8,1.3927]
[1730480531919,8.31357,2521.7,2520.8,1.3927]
[1730480531920,3.96663,2521.1,2520.8,1.3927]
[1730480533062,3.96652,2521.1,2520.8,1.3927]
[1730480534564,3.96629,2521.3,2520.8,5.3596]
[1730480534778,3.96573,2521.6,2520.8,2.40470519]
[1730480534942,3.96613,2521.4,2520.9,3.96675]
[1730480535130,3.96626,2521.3,2520.8,1.3927]
[1730480535474,3.96652,2521.1,2520.8,1.3927]
[1730480535673,3.96626,2521.3,2520.8,5.35968]
[1730480535834,3.96653,2521.1,2520.8,1.3927]
[1730480536234,3.96637,2521.2,2520.8,1.3927]
[1730480536443,3.96616,2521.4,2520.9,0.07932746]
[1730480536940,6.96559,2521.7,2520.9,0.07932746]
[1730480536941,3.96557,2521.7,2520.9,4.04603746]
[1730480537147,3.0,2521.8,2521.2,1.3454]
[1730480537333,3.96597,2521.5,2521.2,1.3454]
[1730480537535,3.96563,2521.7,2521.2,5.39102009]
[1730480537536,3.96557,2521.7,2521.2,5.39102009]
[1730480537744,5.35795,2521.9,2521.3,3.96618]
[1730480537745,3.96536,2521.9,2521.3,3.96618]
[1730480537968,1.4289,2522.2,2521.3,0.07931827]
[1730480537969,3.96548,2521.8,2521.3,0.07931827]
[1730480538134,3.96565,2521.7,2521.3,0.07931827]
[1730480538333,3.96548,2521.8,2521.3,0.07931827]
[1730480538564,7.93101,2521.8,2521.3,3.96608]
[1730480538736,3.96573,2521.7,2521.3,0.932689]
[1730480538929,7.93146,2521.7,2521.2,5.31167]
[1730480539143,3.96573,2521.7,2521.2,5.31167]
[1730480539359,3.96573,2521.7,2521.2,9.27793]
[1730480539666,3.96597,2521.5,2521.2,1.3454]
[1730480540167,3.96606,2521.4,2521.2,1.3454]
[1730480540877,3.9659,2521.5,2521.2,1.3454]
[1730480541442,3.96577,2521.6,2521.2,5.31174]
[1730480541843,3.96577,2521.6,2521.2,2.35254522]
[1730480542265,3.96577,2521.6,2521.2,2.273225]
[1730480542479,3.96577,2521.6,2521.3,0.07931716]
[1730480542683,3.96577,2521.6,2521.2,6.239565]
[1730480542982,3.96597,2521.5,2521.2,1.3454]
[1730480543855,3.96576,2521.6,2521.2,1.3454]
[1730480544621,3.96576,2521.6,2521.2,5.31165]
[1730480544946,3.96558,2521.7,2521.3,3.96619]
[1730480545286,3.96558,2521.7,2521.2,5.31165]
[1730480545287,4.3316,2522.2,2521.4,4.97313769]
[1730480545447,3.96528,2521.9,2521.5,1.4452]
[1730480545775,3.96544,2521.8,2521.5,1.4452]
[1730480546679,3.96514,2522.0,2521.5,1.4452]
[1730480546881,3.96528,2521.9,2521.5,1.4452]
[1730480547082,3.96456,2522.4,2521.7,1.4373]
[1730480547283,3.96456,2522.4,2521.5,0.46001196]
[1730480547284,3.96456,2522.4,2521.9,3.96518]
[1730480547484,3.96465,2522.3,2522.0,1.4373]
[1730480547686,3.96463,2522.3,2522.0,1.4373]
[1730480547892,3.96465,2522.3,2522.0,1.4373]
[1730480548102,3.96481,2522.2,2522.0,1.4373]
[1730480548246,3.96481,2522.2,2521.6,1.4373]
[1730480548247,3.96548,2521.8,2521.6,1.4373]
[1730480548585,1.3613,2522.3,2521.6,1.4373]
[1730480548586,3.9651,2522.0,2521.6,1.4373]
[1730480548747,3.96518,2522.0,2521.6,5.403]
[1730480549182,6.9647,2522.3,2521.8,3.96532]
[1730480549382,3.9647,2522.3,2521.9,1.4373]
[1730480549584,3.96429,2522.6,2522.0,3.96502]
[1730480549821,3.96438,2522.5,2522.1,1.4373]
[1730480550171,7.92878,2522.5,2522.1,1.4373]
[1730480550491,7.92882,2522.5,2522.1,1.4373]
[1730480550655,3.96438,2522.5,2522.1,1.4373]
[1730480550855,3.96438,2522.5,2522.2,0.0792875]
[1730480551054,3.96418,2522.6,2522.2,0.0792875]
[1730480551250,3.96412,2522.7,2522.2,4.0440775]
[1730480551467,6.13376028,2524.0,2522.2,4.0440775]
[1730480551468,0.62081662,2523.3,2522.4,1.4425]
[1730480551698,4.91952659,2523.7,2522.9,5.40604]
[1730480551699,3.96292,2523.4,2522.9,5.40604]
[1730480551995,3.96285,2523.5,2523.0,4.04272184]
[1730480552219,3.96212,2523.9,2523.2,3.96307]
[1730480552220,3.96237,2523.8,2523.2,3.96307]
[1730480552425,3.96245,2523.7,2523.3,0.0792517]
[1730480552582,3.96199,2524.0,2523.5,3.96262]
[1730480552785,3.96199,2524.0,2523.6,0.07924197]
[1730480552996,3.96166,2524.2,2523.7,5.40484]
[1730480553321,3.96166,2524.2,2523.8,0.07923435]
[1730480553478,3.96166,2524.2,2523.7,2.379307]
[1730480553479,3.96204,2524.0,2523.7,1.4425]
[1730480553802,3.96118,2524.5,2523.7,1.4425]
[1730480554006,3.96182,2524.1,2523.7,1.4425]
[1730480554408,3.68197905,2524.6,2523.7,1.4425]
[1730480554718,3.96097,2524.7,2524.1,1.3159]
[1730480554884,3.96097,2524.7,2524.2,3.96152]
[1730480555084,3.96108,2524.6,2524.1,1.3159]
[1730480555784,0.1220767,2525.1,2524.1,5.27767]
[1730480556011,3.96089,2524.7,2524.2,0.07921863]
[1730480556193,3.96065,2524.9,2524.3,3.96149]
[1730480556530,4.0824667,2525.1,2524.4,1.3818]
[1730480556699,4.0824667,2525.1,2524.5,3.96117]
[1730480556883,4.0823967,2525.1,2524.5,3.96108]
[1730480557210,4.49063637,2525.1,2524.4,1.3818]
[1730480557392,3.96071,2524.8,2524.4,1.3818]
[1730480557919,7.92122,2524.9,2524.4,1.3818]
[1730480558629,3.96077,2524.8,2524.4,1.3818]
[1730480558919,3.9604,2525.0,2524.5,3.96112]
[1730480559232,4.0823867,2525.1,2524.6,7.92192]
[1730480559380,4.0823867,2525.1,2524.7,1.4024]
[1730480560101,3.9607,2524.8,2524.7,1.4024]
[1730480560355,3.96056,2524.9,2524.7,1.4024]
[1730480560656,3.9607,2524.8,2524.5,19.77]
[1730480560846,3.80463518,2524.6,2524.5,19.77]
[1730480562118,3.9607,2524.9,2524.5,19.77]
[1730480562316,3.96063,2524.9,2524.5,19.77]
[1730480562520,3.96063,2524.9,2524.4,1.3596]
[1730480562727,3.96063,2524.9,2524.5,0.07921399]
[1730480563107,4.0824567,2525.1,2524.5,3.96115]
[1730480563333,0.1220767,2525.1,2524.6,0.532075]
[1730480563540,0.1220767,2525.1,2524.8,3.9607]
[1730480563744,0.1220767,2525.1,2524.9,3.96043]
[1730480564254,3.95852,2526.2,2524.9,3.96043]
[1730480564255,4.15037,2526.3,2525.7,1.4013]
[1730480564435,10.03497268,2526.9,2525.7,1.4013]
[1730480564436,3.959,2525.9,2525.7,1.4013]
[1730480564636,3.95882,2526.0,2525.2,1.4013]
[1730480564808,3.9596,2525.6,2525.2,1.4013]
[1730480565011,3.95961,2525.5,2525.2,1.4013]
[1730480565213,3.9596,2525.6,2525.2,1.4013]
[1730480565508,3.95962,2525.5,2525.2,1.4013]
[1730480567575,7.91935,2525.5,2525.2,1.4013]
[1730480567784,3.95962,2525.5,2525.2,1.4013]
[1730480568353,3.95992,2525.3,2525.2,1.4013]
[1730480569871,3.9602,2525.2,2524.8,1.4536]
[1730480570285,7.91993,2525.3,2524.8,1.4536]
[1730480570495,3.96012,2525.2,2524.8,1.4536]
[1730480570677,3.96032,2525.1,2524.8,1.4536]
[1730480570878,0.792044,2525.1,2524.4,1.3879]
[1730480571092,3.96063,2524.9,2524.4,5.34922]
[1730480571685,3.95963,2525.5,2525.0,3.96039]
[1730480571997,3.95963,2525.5,2525.1,0.07919482]
[1730480572179,3.95963,2525.5,2525.0,3.9603]
[1730480572383,3.95903,2525.9,2524.9,1.3872]
[1730480572384,3.95986,2525.4,2524.9,1.3872]
[1730480572691,7.91977,2525.4,2524.9,1.3872]
[1730480572907,3.96009,2525.2,2524.9,1.3872]
[1730480573110,3.96009,2525.2,2524.5,1.4016]
[1730480573111,3.96083,2524.8,2524.5,1.4016]
[1730480573633,3.96095,2524.7,2524.5,1.4016]
[1730480573785,3.96113,2524.6,2524.2,1.3941]
[1730480575488,3.96121,2524.5,2524.2,1.3941]
[1730480575689,3.96087,2524.7,2524.2,5.43494202]
[1730480575908,3.96087,2524.7,2524.3,4.9011212]
[1730480576111,3.96071,2524.8,2524.4,4.0405503]
[1730480577026,3.96036,2525.1,2524.5,3.96118]
[1730480577242,3.96046,2525.0,2524.5,3.96118]
[1730480577429,3.96073,2524.8,2524.3,20.7096612]
[1730480577719,3.96102,2524.7,2524.3,20.7096612]
[1730480577939,3.96108,2524.6,2524.3,20.7096612]
[1730480578113,3.96108,2524.6,2524.3,19.77]
[1730480578544,3.9611,2524.6,2524.3,19.77]
[1730480578849,3.96119,2524.5,2524.3,19.77]
[1730480579246,3.96103,2524.6,2524.3,19.77]
[1730480579447,3.96102,2524.7,2524.3,19.77]
[1730480579655,7.92204,2524.7,2524.3,19.77]
[1730480579809,3.96046,2525.0,2524.4,0.07922037]
[1730480580016,3.96046,2525.0,2524.6,1.3151]
[1730480580319,1.3341,2525.9,2525.0,1.3151]
[1730480580647,3.95971,2525.5,2525.1,4.0394315]
[1730480580850,3.95971,2525.5,2525.0,5.27547]
[1730480581040,3.95971,2525.5,2525.0,5.803017]
[1730480581243,3.95977,2525.4,2525.0,5.802947]
[1730480581545,3.96001,2525.3,2525.0,1.842647]
[1730480581865,3.96001,2525.3,2525.0,1.3151]
[1730480582216,3.95974,2525.5,2525.0,1.3151]
[1730480582409,3.9594,2525.7,2525.1,0.07919657]
[1730480582639,3.95948,2525.6,2525.2,3.96005]
[1730480582849,3.95931,2525.7,2525.2,7.92004]
[1730480583150,3.95953,2525.6,2525.2,4.89142366]
[1730480583358,3.95953,2525.6,2525.2,0.93143366]
[1730480583653,3.9594,2525.7,2525.2,4.89143366]
[1730480584025,3.95906,2525.9,2525.4,1.3774]
[1730480584351,3.95884,2526.0,2525.5,4.03876311]
[1730480584551,3.95874,2526.1,2525.6,4.89693231]
[1730480584870,3.95885,2526.0,2525.6,4.89693231]
[1730480585153,1.3412,2525.9,2525.3,19.77]
[1730480585471,5.32826,2525.4,2525.3,19.77]
[1730480585752,3.96066,2524.9,2524.4,1.399]
[1730480585949,3.96036,2525.1,2524.4,1.399]
[1730480586154,1.3685,2525.4,2524.4,1.399]
[1730480586155,3.96056,2524.9,2524.4,1.399]
[1730480586319,3.96073,2524.8,2524.5,0.536042]
[1730480586522,3.95992,2525.3,2524.5,0.536042]
[1730480586721,3.96023,2525.1,2524.5,4.497192]
[1730480586924,3.95992,2525.3,2524.5,0.536042]
[1730480587120,3.95992,2525.3,2524.4,1.399]
[1730480587469,4.3685,2525.4,2524.2,19.77]
[1730480587470,3.96134,2524.4,2524.2,19.77]
[1730480587759,3.9606,2524.9,2524.2,19.77]
[1730480587760,3.96116,2524.6,2524.2,19.77]
[1730480588050,3.96097,2524.7,2524.2,19.77]
[1730480588216,7.92249,2524.5,2524.2,19.77]
[1730480588416,3.96118,2524.5,2524.2,19.77]
[1730480589054,3.96096,2524.7,2524.3,0.07922452]
[1730480589859,3.96072,2524.8,2524.3,4.04062452]
[1730480590941,3.96127,2524.5,2524.1,1.328]
[1730480591147,1.23754754,2526.5,2523.8,1.4277]
[1730480591148,3.96205,2524.0,2523.8,1.4277]
[1730480591345,4.69985608,2524.6,2523.5,0.41182035]
[1730480591346,3.96165,2524.2,2523.5,1.83952035]
[1730480591547,7.92507,2523.7,2523.5,0.41182035]
[1730480591859,3.96248,2523.7,2523.2,5.39085]
[1730480592278,3.96225,2523.9,2523.2,5.39085]
[1730480592279,3.96275,2523.5,2523.2,1.4277]
[1730480592620,3.96252,2523.7,2523.2,1.4277]
[1730480592933,3.96252,2523.7,2522.4,4.179]
[1730480592934,3.96312,2523.3,2522.9,1.4179]
[1730480593631,3.96323,2523.2,2522.9,1.4179]
[1730480593845,3.963,2523.4,2522.9,1.4179]
[1730480593846,3.96308,2523.3,2522.9,1.4179]
[1730480594164,3.96306,2523.3,2522.9,5.38157]
[1730480594656,3.96306,2523.3,2523.0,0.538157]
[1730480595325,3.96306,2523.3,2522.9,1.4179]
[1730480595529,3.96333,2523.2,2522.9,1.4179]
[1730480596043,3.96333,2523.2,2522.6,21.53993436]
[1730480596254,3.96356,2523.0,2522.6,4.76993436]
[1730480596425,7.92664,2523.2,2522.6,8.73397436]
[1730480596624,3.96331,2523.2,2522.7,3.964]
[1730480596869,3.96309,2523.3,2522.8,0.07926861]
[1730480597035,3.96309,2523.3,2522.9,3.96367]
[1730480597476,3.96286,2523.5,2523.0,4.04278359]
[1730480598186,3.96286,2523.5,2523.0,3.96352]
[1730480598801,3.96286,2523.5,2523.0,4.04278015]
[1730480599176,7.69985608,2524.0,2523.0,4.04278015]
[1730480599177,3.96239,2523.8,2523.1,1.4497]
[1730480599496,3.9626,2523.6,2523.2,0.07925325]
[1730480599662,3.96277,2523.5,2523.2,0.07925325]
[1730480599861,3.96215,2523.9,2523.3,1.4497]
[1730480600065,3.96239,2523.8,2523.4,0.07924981]
[1730480600680,3.96215,2523.9,2523.4,4.59131879]
[1730480600876,3.96238,2523.8,2523.4,0.62844879]
[1730480601088,3.96215,2523.9,2523.4,0.6284488]
[1730480601287,3.9618,2524.1,2523.4,0.54919898]
[1730480601493,3.9626,2523.6,2523.3,1.4497]
[1730480602022,4.69985608,2523.7,2522.8,1.3178]
[1730480602186,4.69985608,2523.7,2522.5,1.3178]
[1730480602187,3.96378,2522.9,2522.5,1.3178]
[1730480602371,3.96416,2522.6,2522.2,1.38671267]
[1730480602570,1.4206,2523.0,2522.3,0.53515327]
[1730480602770,3.96442,2522.5,2522.2,1.3178]
[1730480603422,3.96442,2522.5,2521.9,1.4076]
[1730480603719,3.96442,2522.5,2521.9,5.37275]
[1730480604012,3.96442,2522.5,2522.0,3.96501]
[1730480604378,3.96442,2522.5,2522.1,3.96487]
[1730480604577,3.96442,2522.5,2522.2,0.07928755]
[1730480604839,3.96442,2522.5,2522.1,4.898618]
[1730480605226,3.9638,2522.9,2522.4,3.96439]
[1730480605435,3.96392,2522.8,2522.3,3.96461]
[1730480605917,3.96392,2522.8,2522.3,3.96455]
[1730480606101,3.96392,2522.8,2522.3,8.38312796]
[1730480606303,3.0,2523.0,2521.9,1.4076]
[1730480606510,3.96409,2522.7,2522.2,3.96478]
[1730480606719,3.96409,2522.7,2522.2,7.92949]
[1730480607088,3.96385,2522.8,2522.3,4.04382193]
[1730480608584,3.96402,2522.7,2522.3,4.04382193]
[1730480608982,3.9638,2522.9,2522.3,4.84467512]
[1730480609188,3.96389,2522.8,2522.3,4.84467512]
[1730480609595,3.96389,2522.8,2522.4,3.96446]
[1730480610121,3.9635,2523.1,2522.5,1.53278186]
[1730480610281,3.9635,2523.1,2522.7,3.96399]
[1730480610480,3.9635,2523.1,2522.7,4.04325973]
[1730480611029,3.96227,2523.8,2523.2,3.96313]
[1730480611336,3.96261,2523.6,2523.2,3.96313]
[1730480611518,3.96227,2523.8,2522.8,21.1099]
[1730480611519,4.69985608,2523.7,2522.8,21.1099]
[1730480611820,3.96338,2523.1,2522.8,19.77]
[1730480611993,3.96391,2522.8,2522.5,1.3399]
[1730480612197,3.96365,2523.0,2522.5,1.3399]
[1730480612384,3.96346,2523.1,2522.6,0.07927565]
[1730480612587,3.0,2523.6,2522.9,3.9636]
[1730480612882,3.963,2523.4,2522.7,3.96387]
[1730480613087,3.96355,2523.0,2522.5,5.30412]
[1730480613388,3.96355,2523.0,2522.5,1.3399]
[1730480613389,3.96377,2522.9,2522.5,1.3399]
[1730480613615,3.96383,2522.9,2522.5,1.3399]
[1730480613833,3.96386,2522.8,2522.5,1.3399]
[1730480613985,3.96357,2523.0,2522.5,5.30419]
[1730480614985,3.96339,2523.1,2522.5,6.23894864]
[1730480615185,3.96363,2523.0,2522.5,6.23894864]
[1730480615387,3.96357,2523.0,2522.5,6.31821431]
[1730480616432,3.9635,2523.1,2522.6,3.96414]
[1730480616589,7.92702,2523.1,2522.6,3.96414]
[1730480616786,3.96357,2523.0,2522.6,3.96414]
[1730480616986,3.96357,2523.0,2522.5,6.31827431]
[1730480617497,3.96354,2523.0,2522.5,1.3399]
[1730480617697,3.96354,2523.0,2522.6,3.96415]
[1730480617909,3.96372,2522.9,2522.5,1.3399]
[1730480618126,3.96415,2522.7,2522.5,1.3399]
[1730480618291,3.96415,2522.7,2522.2,29.1451]
[1730480618496,3.96415,2522.7,2522.2,5.41039]
[1730480618814,3.96415,2522.7,2522.3,4.04390167]
[1730480619316,3.96415,2522.7,2522.3,3.96462]
[1730480620308,3.96415,2522.7,2522.2,5.41039]
[1730480620309,3.96408,2522.7,2522.2,5.41039]
[1730480620503,3.96408,2522.7,2522.2,5.41038]
[1730480620729,3.96408,2522.7,2522.3,0.541038]
[1730480620918,3.96417,2522.6,2522.2,5.41038]
[1730480621224,3.96408,2522.7,2522.2,5.41038]
[1730480621631,7.9282,2522.7,2522.2,5.41038]
[1730480621795,3.96408,2522.7,2522.2,5.41038]
[1730480621995,3.96408,2522.7,2522.2,6.347916]
[1730480622237,4.69985608,2522.8,2521.9,21.52069565]
[1730480622394,3.96489,2522.2,2521.9,21.52069565]
[1730480622592,3.96489,2522.2,2521.9,21.1091]
[1730480622817,3.96497,2522.1,2521.9,19.77]
[1730480623131,3.96497,2522.1,2521.8,19.77]
[1730480623295,3.9617572,2522.1,2521.8,19.77]
[1730480623489,1.3673,2522.4,2521.8,19.77]
[1730480623490,3.96519,2522.0,2521.8,19.77]
[1730480623711,3.96544,2521.8,2521.7,19.77]
[1730480624242,3.96526,2521.9,2521.7,19.77]
[1730480624451,3.96542,2521.8,2521.7,19.77]
[1730480624825,5.33187,2522.4,2521.7,19.77]
[1730480624826,3.96527,2521.9,2521.7,19.77]
[1730480625214,3.96527,2521.9,2521.8,19.77]
[1730480625419,7.93031,2522.0,2521.8,19.77]
[1730480625663,3.96526,2521.9,2521.8,19.77]
[1730480626614,4.3673,2522.4,2521.8,19.77]
[1730480626848,3.96433,2522.5,2521.9,5.45485404]
[1730480627053,3.9639,2522.8,2521.9,1.48960404]
[1730480627211,3.9639,2522.8,2522.3,3.96455]
[1730480627411,3.9639,2522.8,2522.3,7.92908]
[1730480627610,3.96401,2522.7,2522.3,3.96453]
[1730480627841,3.9639,2522.8,2522.4,0.396453]
[1730480628041,7.92786,2522.8,2522.4,0.396453]
[1730480628249,3.96409,2522.7,2522.4,0.396453]
[1730480628410,5.33615,2523.1,2522.3,3.96463]
[1730480628411,3.96363,2523.0,2522.3,3.96463]
[1730480628610,3.96369,2522.9,2522.4,3.96439]
[1730480628846,3.96363,2523.0,2522.5,3.96428]
[1730480629050,7.92728,2523.0,2522.5,5.41028]
[1730480629216,7.92731,2523.0,2522.5,5.41028]
[1730480629532,3.96372,2522.9,2522.5,5.41028]
[1730480629918,3.96386,2522.8,2522.5,1.446]
[1730480630125,3.96417,2522.6,2522.1,3.96483]
[1730480630362,3.96417,2522.6,2522.2,1.783783]
[1730480630719,3.9644,2522.5,2522.2,1.783783]
[1730480631199,3.0,2523.0,2521.9,1.77322499]
[1730480631339,3.96482,2522.2,2521.9,21.54322499]
[1730480631686,3.96468,2522.3,2521.9,5.73847499]
[1730480631869,3.96468,2522.3,2521.9,9.70364499]
[1730480632047,3.96468,2522.3,2521.9,5.73839499]
[1730480632385,3.9641,2522.7,2522.1,3.96493]
[1730480632685,3.96429,2522.6,2522.1,3.96493]
[1730480632844,3.96435,2522.5,2522.1,3.96493]
[1730480633351,3.96464,2522.3,2521.9,5.73847499]
[1730480633541,3.96464,2522.3,2521.9,1.77322499]
[1730480633884,3.96455,2522.4,2521.9,5.73848499]
[1730480634672,3.9647,2522.3,2521.9,5.73848499]
[1730480635077,3.96455,2522.4,2521.9,9.70365499]
[1730480635270,7.92913,2522.4,2521.9,5.73839499]
[1730480635473,3.96471,2522.3,2521.9,5.73839499]
[1730480635654,3.96455,2522.4,2522.0,3.9651]
[1730480635858,7.92913,2522.4,2521.9,5.73839499]
[1730480636048,3.96467,2522.3,2521.9,5.73839499]
[1730480636571,3.96455,2522.4,2521.9,25.50835499]
[1730480636783,7.92915,2522.4,2521.9,25.50835499]
[1730480636970,3.96455,2522.4,2522.0,3.96509]
[1730480637258,3.96424,2522.6,2522.1,3.96492]
[1730480637463,1.3545,2522.9,2522.1,3.96494]
[1730480637464,2.17210419,2522.9,2522.1,3.96494]
[1730480637759,7.92881,2522.5,2522.0,3.96509]
[1730480637977,7.92881,2522.5,2522.0,4.04438139]
[1730480638182,7.92881,2522.5,2522.0,3.96509]
[1730480638382,3.96466,2522.3,2521.9,5.73848499]
[1730480638565,3.96452,2522.4,2522.0,3.965]
[1730480638752,3.96452,2522.4,2521.9,25.50848499]
[1730480638753,3.96463,2522.3,2521.9,25.50848499]
[1730480639305,3.96434,2522.5,2522.1,3.96493]
[1730480639456,1.85492836,2522.8,2521.9,21.54322499]
[1730480639457,3.96448,2522.4,2521.9,21.54322499]
[1730480639656,3.9647,2522.3,2521.9,21.54322499]
[1730480639855,0.81760419,2522.7,2521.9,25.50838499]
[1730480640184,3.96418,2522.6,2522.1,3.96481]
[1730480640383,3.96448,2522.4,2522.0,3.96495]
[1730480641096,3.96425,2522.6,2522.1,3.96486]
[1730480641254,2.17210419,2522.9,2521.9,25.50837499]
[1730480641255,3.9644,2522.5,2521.9,25.50837499]
[1730480641459,3.96421,2522.6,2522.1,3.96481]
[1730480642575,3.96448,2522.4,2522.0,3.96496]
[1730480643173,3.96421,2522.6,2522.0,3.96496]
[1730480643478,0.81760419,2522.7,2521.9,1.77322499]
[1730480643705,3.9647,2522.3,2521.9,1.77322499]